bitfinex/quotes_SOLUSD_20241225
["timestamp","ask_amount","ask_price","bid_price","bid_amount"]
[1735163508747,9.93472169,196.81,196.73,9.93472169]
[1735163510775,9.93472169,196.8,196.73,9.93472169]
[1735163513973,38.53373633,196.82,196.69,2.42778621]
[1735163513974,9.93472169,196.78,196.69,1.6655]
[1735163514182,36.480684,196.79,196.69,11.60022169]
[1735163514183,9.93472169,196.77,196.69,11.60022169]
[1735163514477,9.93472169,196.76,196.69,1.6655]
[1735163514651,9.93472169,196.76,196.69,11.60022169]
[1735163514877,9.93472169,196.76,196.68,9.93472169]
[1735163515092,9.93472169,196.72,196.65,30.0]
[1735163515296,9.93472169,196.72,196.64,11.59252169]
[1735163517104,9.93472169,196.71,196.64,1.6578]
[1735163517305,9.93472169,196.69,196.62,9.93472169]
[1735163517879,9.93472169,196.72,196.65,9.93472169]
[1735163518091,9.93472169,196.73,196.66,9.93472169]
[1735163518300,9.93472169,196.75,196.67,9.93472169]
[1735163518494,9.93472169,196.74,196.66,9.93472169]
[1735163521315,12.7051,196.77,196.68,9.93472169]
[1735163521614,11.58632169,196.79,196.7,9.93472169]
[1735163522114,9.93472169,196.78,196.71,9.93472169]
[1735163522315,9.93472169,196.78,196.7,9.93472169]
[1735163522917,9.93472169,196.78,196.71,9.93472169]
[1735163524120,11.58632169,196.79,196.71,9.93472169]
[1735163524288,9.93472169,196.82,196.74,9.93472169]
[1735163524689,44.58729503,196.87,196.77,9.93472169]
[1735163524690,26.5095741,196.87,196.77,9.93472169]
[1735163524889,9.93472169,196.85,196.78,9.93472169]
[1735163525413,9.93472169,196.85,196.77,9.93472169]
[1735163526041,9.93472169,196.86,196.78,39.93472169]
[1735163526716,9.93472169,196.86,196.76,36.97375253]
[1735163526909,9.93472169,196.85,196.76,36.2117]
[1735163527214,9.93472169,196.85,196.78,9.93472169]
[1735163528236,15.50486819,196.85,196.78,15.50486819]
[1735163535341,15.50486819,196.83,196.76,15.50486819]
[1735163537046,15.50486819,196.84,196.76,15.50486819]
[1735163538320,20.0,196.81,196.74,1.5732]
[1735163538530,20.0,196.81,196.75,15.50486819]
[1735163538738,20.0,196.81,196.73,15.50486819]
[1735163539538,15.50486819,196.8,196.7,30.0]
[1735163539756,15.50486819,196.8,196.72,15.50486819]
[1735163540543,35.50486819,196.81,196.73,15.50486819]
[1735163542239,15.50486819,196.83,196.75,45.50486819]
[1735163542548,15.50486819,196.84,196.77,15.50486819]
[1735163544255,1.558,196.88,196.8,30.0]
[1735163544462,21.62176819,196.9,196.83,15.50486819]
[1735163544784,15.50486819,196.89,196.82,15.50486819]
[1735163544946,15.50486819,196.86,196.78,15.50486819]
[1735163545125,15.50486819,196.84,196.77,15.50486819]
[1735163545317,15.50486819,196.83,196.75,15.50486819]
[1735163545522,15.50486819,196.82,196.74,15.50486819]
[1735163545744,15.50486819,196.83,196.75,15.50486819]
[1735163546060,28.327758,196.89,196.73,15.50486819]
[1735163546061,15.50486819,196.8,196.73,15.50486819]
[1735163546346,15.50486819,196.8,196.72,15.50486819]
[1735163548333,15.50486819,196.8,196.73,15.50486819]
[1735163550357,9.92749419,196.81,196.73,9.92749419]
[1735163551740,29.92749419,196.79,196.72,9.92749419]
[1735163552057,9.92749419,196.76,196.68,9.92749419]
[1735163552252,9.92749419,196.76,196.69,9.92749419]
[1735163552443,9.92749419,196.77,196.69,9.92749419]
[1735163553073,33.70437819,196.76,196.69,9.92749419]
[1735163553237,33.70437819,196.76,196.65,29.6981311]
[1735163553238,29.92749419,196.73,196.65,29.6981311]
[1735163553430,9.92749419,196.69,196.65,19.77063691]
[1735163553660,9.92749419,196.68,196.65,19.77063691]
[1735163554056,9.92749419,196.71,196.65,19.77063691]
[1735163559379,9.92749419,196.69,196.65,19.77063691]
[1735163559586,9.92749419,196.68,196.65,19.77063691]
[1735163559757,9.92749419,196.68,196.59,30.0]
[1735163560090,9.92749419,196.68,196.6,9.92749419]
[1735163561281,9.92749419,196.67,196.6,9.92749419]
[1735163561447,20.0,196.67,196.6,9.92749419]
[1735163561653,20.0,196.67,196.61,9.92749419]
[1735163562280,20.0,196.67,196.6,9.92749419]
[1735163563871,20.0,196.67,196.59,30.0]
[1735163564089,20.0,196.67,196.6,9.92749419]
[1735163564297,29.92749419,196.67,196.6,9.92749419]
[1735163565589,29.92749419,196.68,196.6,9.92749419]
[1735163567487,9.92749419,196.66,196.56,30.0]
[1735163567660,9.92749419,196.64,196.53,1.5255]
[1735163567856,9.92749419,196.63,196.56,9.92749419]
[1735163568057,9.92749419,196.62,196.55,9.92749419]
[1735163568375,9.92749419,196.61,196.54,9.92749419]
[1735163570669,9.92749419,196.63,196.55,9.92749419]
[1735163570877,22.64109419,196.64,196.56,9.92749419]
[1735163571176,9.92749419,196.63,196.55,9.92749419]
[1735163572064,9.92749419,196.63,196.56,9.92749419]
[1735163573385,9.92749419,196.63,196.55,9.92749419]
[1735163574492,14.3139,196.68,196.6,9.92749419]
[1735163574694,9.92749419,196.67,196.56,30.0]
[1735163574879,9.92749419,196.67,196.59,9.92749419]
[1735163576997,29.92749419,196.66,196.59,9.92749419]
[1735163577285,9.92749419,196.67,196.6,9.92749419]
[1735163581201,9.92749419,196.67,196.59,9.92749419]
[1735163582195,29.92749419,196.66,196.59,9.92749419]
[1735163583000,20.0,196.66,196.59,9.92749419]
[1735163585395,29.92749419,196.66,196.59,9.92749419]
[1735163585991,29.92749419,196.66,196.58,9.92749419]
[1735163587593,29.92749419,196.66,196.58,39.92749419]
[1735163587898,29.92749419,196.66,196.58,9.92749419]
[1735163588074,9.92749419,196.65,196.58,9.92749419]
[1735163588475,29.92749419,196.66,196.58,9.92749419]
[1735163588775,9.92749419,196.63,196.56,9.92749419]
[1735163588975,9.92749419,196.62,196.55,9.92749419]
[1735163589396,9.92749419,196.63,196.56,39.92749419]
[1735163590401,9.92749419,196.64,196.57,9.92749419]
[1735163591290,9.92749419,196.64,196.56,39.92749419]
[1735163592104,9.92749419,196.65,196.57,9.92749419]
[1735163592277,20.0,196.66,196.59,9.92749419]
[1735163593911,1.6025,196.68,196.62,9.92749419]
[1735163594117,1.5632,196.73,196.66,9.92749419]
[1735163594403,1.5632,196.73,196.68,9.92749419]
[1735163594602,1.5632,196.73,196.67,9.92749419]
[1735163598709,6.1149,196.77,196.68,30.0]
[1735163598710,9.92749419,196.76,196.68,30.0]
[1735163599009,9.92749419,196.76,196.67,9.92749419]
[1735163607199,7.6952,196.77,196.68,30.0]
[1735163607514,9.92749419,196.76,196.67,9.92749419]
[1735163614027,7.6952,196.77,196.71,9.92749419]
[1735163618222,9.92749419,196.76,196.68,30.0]
[1735163618446,9.92749419,196.76,196.68,9.92749419]
[1735163619420,7.6952,196.77,196.7,30.0]
[1735163619801,7.6952,196.77,196.71,9.92749419]
[1735163620002,9.92749419,196.76,196.69,9.92749419]
[1735163620202,7.6952,196.77,196.66,30.0]
[1735163620203,9.92749419,196.75,196.68,9.92749419]
[1735163624929,7.6952,196.77,196.64,30.0]
[1735163625135,7.6952,196.77,196.63,9.92749419]
[1735163625136,9.92749419,196.71,196.63,9.92749419]
[1735163625310,9.92749419,196.71,196.64,9.92749419]
[1735163625637,9.92749419,196.72,196.65,9.92749419]
[1735163628537,9.92749419,196.72,196.64,9.92749419]
[1735163630042,20.0,196.71,196.67,9.92749419]
[1735163630223,20.0,196.71,196.62,30.0]
[1735163630546,11.58089419,196.7,196.63,9.92749419]
[1735163632818,20.0,196.67,196.59,30.0]
[1735163633139,9.92749419,196.66,196.58,9.92749419]
[1735163633522,9.92749419,196.65,196.58,9.92749419]
[1735163633924,9.92749419,196.65,196.57,30.0]
[1735163634219,7.8039,196.7,196.63,9.92749419]
[1735163634418,7.8039,196.7,196.64,9.92749419]
[1735163635256,7.8039,196.7,196.66,9.92749419]
[1735163635419,1.6534,196.75,196.69,9.92749419]
[1735163635620,1.6534,196.75,196.7,9.92749419]
[1735163635820,1.6534,196.75,196.69,9.92749419]
[1735163637262,1.6534,196.75,196.66,30.0]
[1735163637263,1.6534,196.75,196.7,9.92749419]
[1735163637425,1.6534,196.75,196.69,9.92749419]
[1735163637620,9.92749419,196.74,196.66,9.92749419]
[1735163637849,29.92749419,196.73,196.66,9.92749419]
[1735163638140,29.92749419,196.73,196.65,9.92749419]
[1735163638347,20.0,196.73,196.66,9.92749419]
[1735163638732,20.0,196.73,196.67,9.92749419]
[1735163638931,20.0,196.72,196.67,9.92749419]
[1735163639140,20.0,196.72,196.66,9.92749419]
[1735163639319,20.0,196.72,196.67,9.92749419]
[1735163639747,29.92749419,196.73,196.67,9.92749419]
[1735163640956,1.6534,196.75,196.67,9.92749419]
[1735163641248,1.6534,196.75,196.7,9.92749419]
[1735163641466,1.6534,196.75,196.7,39.92749419]
[1735163641647,1.6534,196.75,196.71,9.92749419]
[1735163641954,9.92749419,196.79,196.71,9.92749419]
[1735163642151,9.92749419,196.79,196.72,9.92749419]
[1735163642329,17.84329419,196.8,196.73,9.92749419]
[1735163642534,7.9158,196.8,196.73,30.0]
[1735163642740,7.9158,196.8,196.73,9.92749419]
[1735163642929,9.92749419,196.79,196.72,9.92749419]
[1735163643243,9.92749419,196.79,196.69,30.0]
[1735163643547,9.92749419,196.79,196.71,9.92749419]
[1735163643750,9.92749419,196.79,196.71,39.92749419]
[1735163643949,7.9158,196.8,196.74,9.92749419]
[1735163644434,15.71122938,196.85,196.78,9.92749419]
[1735163644637,25.63872357,196.85,196.78,9.92749419]
[1735163644942,9.92749419,196.81,196.74,9.92749419]
[1735163646854,9.92749419,196.81,196.73,9.92749419]
[1735163647260,29.92749419,196.78,196.68,1.5565]
[1735163647457,9.92749419,196.76,196.69,9.92749419]
[1735163647642,20.0,196.72,196.66,9.92749419]
[1735163647959,12.7013,196.83,196.71,30.0]
[1735163648129,23.776884,196.82,196.71,30.0]
[1735163648450,7.79542938,196.81,196.73,30.0]
[1735163648657,17.72292357,196.81,196.74,9.92749419]
[1735163649028,9.92749419,196.81,196.74,9.92749419]
[1735163650254,33.70437819,196.85,196.77,9.92749419]
[1735163650468,9.92749419,196.86,196.78,9.92749419]
[1735163652438,20.0,196.86,196.79,9.92749419]
[1735163652760,1.5128,196.88,196.81,9.92749419]
[1735163653258,11.44029419,196.88,196.8,9.92749419]
[1735163653470,9.92749419,196.86,196.76,1.5565]
[1735163653770,9.92749419,196.84,196.76,9.92749419]
[1735163654558,9.92749419,196.82,196.73,30.0]
[1735163654730,33.70437819,196.83,196.75,9.92749419]
[1735163654937,9.92749419,196.83,196.75,9.92749419]
[1735163665040,2.08746757,196.87,196.69,0.76228056]
[1735163665041,20.0,196.79,196.69,0.76228056]
[1735163665353,9.92749419,196.76,196.68,9.92749419]
[1735163667569,1.5084,196.74,196.68,9.92749419]
[1735163672474,1.5084,196.74,196.68,39.92749419]
[1735163672676,1.5084,196.74,196.68,9.92749419]
[1735163673180,1.5084,196.74,196.68,39.92749419]
[1735163673354,1.5084,196.74,196.68,9.92749419]
[1735163680788,46.41207819,196.73,196.65,9.92749419]
[1735163682685,8.0182,196.74,196.7,9.92749419]
[1735163683061,8.0182,196.74,196.66,30.0]
[1735163683385,8.0182,196.74,196.69,9.92749419]
[1735163684355,8.0278,196.79,196.73,9.92749419]
[1735163684557,25.75072357,196.84,196.76,9.92749419]
[1735163684771,8.0278,196.84,196.78,9.92749419]
[1735163686397,1.518,196.84,196.8,9.92749419]
[1735163686766,9.92749419,196.87,196.8,9.92749419]
[1735163689795,9.92749419,196.86,196.73,30.76208443]
[1735163689967,9.92749419,196.84,196.76,9.92749419]
[1735163690294,20.0,196.7,196.63,10.0115162]
[1735163690499,29.92749419,196.7,196.63,10.0115162]
[1735163690674,29.92749419,196.7,196.62,9.92749419]
[1735163691361,23.776884,196.73,196.64,9.92749419]
[1735163691567,9.92749419,196.72,196.64,9.92749419]
[1735163692296,9.92749419,196.73,196.64,39.92749419]
[1735163694189,15.52445523,196.73,196.65,15.52445523]
[1735163695692,15.52445523,196.71,196.63,15.52445523]
[1735163698791,21.83875523,196.69,196.61,15.52445523]
[1735163699811,15.52445523,196.68,196.61,15.52445523]
[1735163702445,21.83875523,196.69,196.61,15.52445523]
[1735163705113,15.52445523,196.68,196.61,15.52445523]
[1735163705815,6.3143,196.69,196.61,15.52445523]
[1735163706018,15.52445523,196.68,196.61,15.52445523]
[1735163708836,15.52445523,196.68,196.59,15.52445523]
[1735163709136,15.52445523,196.64,196.57,25.73462827]
[1735163709630,15.52445523,196.64,196.56,15.52445523]
[1735163710739,15.52445523,196.6,196.51,0.12]
[1735163710917,15.52445523,196.6,196.53,15.52445523]
[1735163711107,15.52445523,196.6,196.52,15.52445523]
[1735163711914,15.52445523,196.59,196.51,15.64445523]
[1735163712116,15.52445523,196.58,196.51,15.64445523]
[1735163712404,15.52445523,196.57,196.51,0.12]
[1735163712602,15.52445523,196.56,196.51,0.12]
[1735163712800,15.52445523,196.55,196.51,0.12]
[1735163716333,1.6319,196.57,196.51,0.12]
[1735163716641,15.52445523,196.58,196.51,15.64445523]
[1735163718239,9.94976677,196.58,196.51,10.06976677]
[1735163722549,33.72665077,196.57,196.51,0.12]
[1735163722841,9.94976677,196.56,196.51,0.12]
[1735163723635,23.776884,196.57,196.51,0.12]
[1735163723843,9.94976677,196.56,196.51,0.12]
[1735163724345,33.72665077,196.57,196.51,0.12]
[1735163728624,9.94976677,196.61,196.54,9.94976677]
[1735163729043,9.94976677,196.6,196.53,9.94976677]
[1735163730366,19.3453,196.66,196.54,9.94976677]
[1735163730543,9.94976677,196.62,196.54,9.94976677]
[1735163733852,33.72665077,196.61,196.54,9.94976677]
[1735163734052,33.72665077,196.61,196.53,9.94976677]
[1735163734562,33.72665077,196.61,196.51,0.12]
[1735163734740,9.94976677,196.59,196.51,0.12]
[1735163734940,9.94976677,196.56,196.51,0.12]
[1735163739284,20.0,196.6,196.53,9.94976677]
[1735163739446,1.6439,196.67,196.57,9.94976677]
[1735163739649,9.94976677,196.67,196.6,9.94976677]
[1735163739863,9.94976677,196.66,196.59,9.94976677]
[1735163740150,9.94976677,196.64,196.57,9.94976677]
[1735163740367,16.131367,196.71,196.59,39.94976677]
[1735163740571,9.94976677,196.66,196.59,9.94976677]
[1735163744786,9.94976677,196.65,196.58,9.94976677]
[1735163745169,9.94976677,196.66,196.58,9.94976677]
[1735163746994,9.94976677,196.66,196.59,9.94976677]
[1735163752367,20.0,196.66,196.59,9.94976677]
[1735163752564,20.0,196.71,196.61,9.94976677]
[1735163752766,9.94976677,196.7,196.61,9.94976677]
[1735163754280,9.94976677,196.68,196.61,9.94976677]
[1735163755871,9.94976677,196.68,196.6,7.8791]
[1735163756068,9.94976677,196.66,196.6,7.8791]
[1735163756386,9.94976677,196.66,196.6,1.5131]
[1735163758593,9.94976677,196.63,196.56,6.366]
[1735163763506,9.94976677,196.59,196.55,1.5131]
[1735163764073,9.94976677,196.59,196.51,16.29956677]
[1735163765410,9.94976677,196.57,196.51,0.12]
[1735163765710,9.94976677,196.53,196.51,0.12]
[1735163766410,9.94976677,196.54,196.51,0.12]
[1735163767383,29.94976677,196.56,196.51,0.12]
[1735163769203,9.94976677,196.56,196.51,0.12]
[1735163769385,12.7173,196.59,196.51,0.12]
[1735163769596,9.94976677,196.54,196.51,0.12]
[1735163770504,9.94976677,196.55,196.51,0.12]
[1735163774314,20.0,196.56,196.51,0.12]
[1735163774498,14.3361,196.62,196.51,10.06976677]
[1735163774814,9.94976677,196.6,196.53,9.94976677]
[1735163776192,9.94976677,196.61,196.53,9.94976677]
[1735163776391,9.94976677,196.6,196.53,9.94976677]
[1735163777540,20.0,196.59,196.53,9.94976677]
[1735163777727,9.94976677,196.61,196.53,9.94976677]
[1735163779618,9.94976677,196.6,196.53,9.94976677]
[1735163779819,9.94976677,196.6,196.52,11.51006677]
[1735163781619,9.94976677,196.6,196.52,41.51006677]
[1735163782321,9.94976677,196.61,196.53,9.94976677]
[1735163782911,20.0,196.64,196.56,9.94976677]
[1735163783214,9.94976677,196.64,196.57,9.94976677]
[1735163783610,7.79542938,196.69,196.58,9.94976677]
[1735163783921,9.94976677,196.65,196.58,9.94976677]
[1735163785114,9.94976677,196.66,196.59,1.5642]
[1735163785506,9.94976677,196.65,196.59,1.5642]
[1735163792228,12.7118,196.67,196.59,1.5642]
[1735163792229,9.94976677,196.62,196.59,1.5642]
[1735163792404,9.94976677,196.62,196.54,7.8348]
[1735163792911,9.94976677,196.61,196.54,17.78456677]
[1735163795036,9.94976677,196.61,196.54,7.8348]
[1735163795206,9.94976677,196.59,196.54,7.8348]
[1735163797915,9.94976677,196.59,196.54,1.5026]
[1735163798124,9.94976677,196.58,196.54,1.5026]
[1735163798329,9.94976677,196.56,196.49,8.0955]
[1735163799433,9.94976677,196.56,196.49,18.04526677]
[1735163800356,9.94976677,196.56,196.49,8.0955]
[1735163800654,9.94976677,196.56,196.49,18.04526677]
[1735163801038,9.94976677,196.57,196.49,18.04526677]
[1735163803322,9.94976677,196.55,196.49,8.0955]
[1735163806349,12.7166,196.6,196.49,1.5026]
[1735163806350,9.94976677,196.53,196.49,1.5026]
[1735163806512,9.94976677,196.53,196.45,9.94976677]
[1735163807015,33.72665077,196.52,196.44,8.0826]
[1735163807211,33.85214077,196.52,196.44,1.6052]
[1735163808041,33.85214077,196.52,196.4,9.94976677]
[1735163808521,33.85214077,196.52,196.39,18.03236677]
[1735163808522,0.12549,196.51,196.39,18.03236677]
[1735163808717,9.94976677,196.47,196.39,18.03236677]
[1735163810656,9.94976677,196.45,196.39,8.0826]
[1735163810821,23.776884,196.48,196.39,8.0826]
[1735163811019,9.94976677,196.47,196.39,18.03236677]
[1735163811979,9.94976677,196.46,196.39,18.03236677]
[1735163813575,9.94976677,196.47,196.39,18.03236677]
[1735163814674,20.0,196.49,196.4,9.94976677]
[1735163814851,9.94976677,196.51,196.44,9.94976677]
[1735163815084,9.94976677,196.5,196.43,9.94976677]
[1735163815271,9.94976677,196.5,196.42,9.94976677]
[1735163815871,9.94976677,196.49,196.42,9.94976677]
[1735163816092,9.94976677,196.49,196.41,9.94976677]
[1735163819264,9.94976677,196.49,196.39,8.0826]
[1735163819265,9.94976677,196.45,196.39,8.0826]
[1735163819585,9.94976677,196.43,196.39,8.0826]
[1735163821081,9.94976677,196.43,196.39,1.6052]
[1735163821245,9.94976677,196.41,196.34,17.85736677]
[1735163822381,9.94976677,196.4,196.34,7.9076]
[1735163822603,9.94976677,196.41,196.34,17.85736677]
[1735163823251,20.0,196.43,196.35,9.94976677]
[1735163823570,9.94976677,196.43,196.35,9.94976677]
[1735163824375,9.94976677,196.42,196.34,17.85736677]
[1735163825089,9.94976677,196.39,196.34,7.9076]
[1735163827375,9.94976677,196.39,196.31,9.94976677]
[1735163827376,23.776884,196.34,196.29,1.6549]
[1735163827762,9.94976677,196.32,196.29,1.6549]
[1735163827979,9.94976677,196.33,196.29,1.6549]
[1735163829258,9.94976677,196.31,196.29,1.6549]
[1735163829458,9.94976677,196.32,196.29,1.6549]
[1735163830595,9.94976677,196.32,196.25,9.94976677]
[1735163833095,23.776884,196.38,196.28,9.94976677]
[1735163833275,12.7277,196.43,196.31,9.94976677]
[1735163833464,9.94976677,196.4,196.33,9.94976677]
[1735163836205,9.94976677,196.4,196.32,9.94976677]
[1735163836388,9.94976677,196.39,196.31,9.94976677]
[1735163837588,9.94976677,196.4,196.32,9.94976677]
[1735163838090,9.94976677,196.4,196.3,37.9076]
[1735163838291,9.94976677,196.39,196.31,9.94976677]
[1735163839680,9.94976677,196.39,196.32,30.0]
[1735163840207,9.94976677,196.39,196.31,9.94976677]
[1735163842690,9.94976677,196.39,196.32,30.0]
[1735163843313,9.94976677,196.39,196.31,9.94976677]
[1735163843514,9.94976677,196.39,196.3,17.85736677]
[1735163844198,9.94976677,196.39,196.3,47.85736677]
[1735163845619,9.94976677,196.35,196.25,37.8747]
[1735163845917,9.94976677,196.33,196.26,9.94976677]
[1735163846124,9.94976677,196.35,196.28,9.94976677]
[1735163847092,1.6205,196.39,196.28,39.94976677]
[1735163847093,9.94976677,196.36,196.28,39.94976677]
[1735163847617,9.94976677,196.35,196.26,30.0]
[1735163847811,1.6205,196.39,196.26,9.94976677]
[1735163847812,9.94976677,196.33,196.26,9.94976677]
[1735163849436,23.776884,196.37,196.28,9.94976677]
[1735163849732,29.94976677,196.37,196.3,9.94976677]
[1735163850634,29.94976677,196.37,196.29,9.94976677]
[1735163851019,29.94976677,196.37,196.28,30.0]
[1735163851219,29.94976677,196.37,196.29,9.94976677]
[1735163854645,23.776884,196.4,196.3,39.94976677]
[1735163854817,9.94976677,196.4,196.33,9.94976677]
[1735163855744,37.84751046,196.44,196.33,9.94976677]
[1735163855939,9.94976677,196.4,196.33,9.94976677]
[1735163857842,9.94976677,196.4,196.32,41.51736677]
[1735163858619,9.94976677,196.4,196.32,11.51736677]
[1735163859038,9.94976677,196.4,196.32,41.51736677]
[1735163859245,9.94976677,196.4,196.33,6.2716]
[1735163862963,2.03251336,196.45,196.33,16.22136677]
[1735163863260,9.94976677,196.42,196.35,9.94976677]
[1735163863625,12.7245,196.48,196.36,39.94976677]
[1735163863820,1.5934,196.49,196.38,30.0]
[1735163864027,9.94976677,196.46,196.38,39.94976677]
[1735163864245,1.5934,196.49,196.38,39.94976677]
[1735163864458,9.94976677,196.45,196.38,39.94976677]
[1735163864625,9.94976677,196.46,196.39,9.94976677]
[1735163865048,9.94976677,196.45,196.38,9.94976677]
[1735163865357,9.94976677,196.45,196.37,9.94976677]
[1735163867143,1.5934,196.49,196.37,9.94976677]
[1735163867325,9.94976677,196.46,196.38,39.94976677]
[1735163868553,9.94976677,196.46,196.38,9.94976677]
[1735163870352,9.94976677,196.46,196.38,39.94976677]
[1735163872558,9.94976677,196.46,196.38,9.94976677]
[1735163873454,23.776884,196.48,196.35,9.94976677]
[1735163873455,9.94976677,196.43,196.35,9.94976677]
[1735163873665,9.94976677,196.41,196.33,16.22136677]
[1735163873963,9.94976677,196.41,196.34,39.94976677]
[1735163875562,23.776884,196.46,196.35,9.94976677]
[1735163875777,9.94976677,196.42,196.35,9.94976677]
[1735163876557,9.94976677,196.42,196.36,30.0]
[1735163876757,9.94976677,196.46,196.38,39.94976677]
[1735163877138,9.94976677,196.45,196.38,39.94976677]
[1735163878062,9.94976677,196.46,196.38,39.94976677]
[1735163882688,9.94976677,196.46,196.38,9.94976677]
[1735163883673,9.94976677,196.46,196.38,39.94976677]
[1735163884567,9.94976677,196.46,196.39,1.6631]
[1735163885071,9.94976677,196.5,196.42,9.94976677]
[1735163886260,9.94976677,196.5,196.43,9.94976677]
[1735163889579,9.94976677,196.5,196.41,30.0]
[1735163889781,12.7207,196.53,196.4,7.16975393]
[1735163889984,9.94976677,196.41,196.36,6.4062]
[1735163890153,9.94976677,196.4,196.29,20.69134106]
[1735163890359,9.94976677,196.4,196.33,9.94976677]
[1735163891365,9.94976677,196.38,196.29,30.0]
[1735163891557,9.94976677,196.38,196.31,9.94976677]
[1735163891887,9.94976677,196.38,196.3,10.07525677]
[1735163892454,9.94976677,196.38,196.3,40.07525677]
[1735163892772,9.94976677,196.39,196.32,9.94976677]
[1735163898486,31.966484,196.45,196.32,39.94976677]
[1735163898785,9.94976677,196.47,196.39,9.94976677]
[1735163899184,9.94976677,196.46,196.39,9.94976677]
[1735163899389,9.94976677,196.45,196.38,9.94976677]
[1735163899766,9.94976677,196.47,196.39,9.94976677]
[1735163900077,9.94976677,196.47,196.4,9.94976677]
[1735163901079,8.2856,196.51,196.41,9.94976677]
[1735163901278,18.23536677,196.51,196.44,9.94976677]
[1735163901587,9.94976677,196.52,196.44,9.94976677]
[1735163901972,9.94976677,196.5,196.39,30.0]
[1735163902166,9.94976677,196.51,196.43,9.94976677]
[1735163902362,9.94976677,196.51,196.39,30.76348433]
[1735163902363,9.94976677,196.51,196.39,0.76348433]
[1735163902569,9.94976677,196.51,196.43,9.94976677]
[1735163902767,9.94976677,196.5,196.43,9.94976677]
[1735163903290,9.94976677,196.52,196.43,9.94976677]
[1735163905556,20.0,196.49,196.41,0.76339794]
[1735163905762,20.0,196.48,196.41,9.94976677]
[1735163905962,20.0,196.48,196.42,9.94976677]
[1735163905963,19.0,196.48,196.42,9.94976677]
[1735163906887,12.72,196.55,196.43,9.94976677]
[1735163907089,9.94976677,196.5,196.43,9.94976677]
[1735163907969,12.72,196.55,196.46,9.94976677]
[1735163908184,9.94976677,196.53,196.46,9.94976677]
[1735163910390,9.94976677,196.53,196.42,30.0]
[1735163910583,9.94976677,196.53,196.44,9.94976677]
[1735163917272,9.94976677,196.53,196.46,9.94976677]
[1735163917674,21.573,196.56,196.47,9.94976677]
[1735163917873,9.94976677,196.55,196.47,9.94976677]
[1735163924174,9.94976677,196.57,196.49,9.94976677]
[1735163924995,6.3155,196.6,196.49,9.94976677]
[1735163925169,9.94976677,196.58,196.49,9.94976677]
[1735163925375,9.94976677,196.57,196.5,9.94976677]
[1735163927899,9.94976677,196.57,196.48,9.94976677]
[1735163931816,9.94976677,196.55,196.47,20.0]
[1735163932113,9.94976677,196.55,196.46,9.94976677]
[1735163933304,9.94976677,196.53,196.46,9.94976677]
[1735163935242,9.94976677,196.55,196.46,9.94976677]
[1735163937619,9.94976677,196.53,196.46,9.94976677]
[1735163939723,20.0,196.55,196.46,9.94976677]
[1735163939894,9.94976677,196.54,196.46,9.94976677]
[1735163944529,9.94976677,196.54,196.45,1.5506]
[1735163944690,9.94976677,196.5,196.45,1.5506]
[1735163945117,9.94976677,196.5,196.43,20.0]
[1735163946232,6.50661966,196.5,196.43,20.0]
[1735163949336,9.94976677,196.49,196.43,20.0]
[1735163949540,9.94976677,196.49,196.42,9.94976677]
[1735163949711,9.94976677,196.49,196.41,9.94976677]
[1735163950038,9.94976677,196.47,196.4,1.6431]
[1735163950265,9.94976677,196.44,196.37,9.94976677]
[1735163950545,9.94976677,196.44,196.36,35.7738708]
[1735163951221,9.94976677,196.44,196.37,9.94976677]
[1735163952106,9.94976677,196.43,196.36,35.7738708]
[1735163952315,9.94976677,196.43,196.36,25.82410403]
[1735163952541,9.94976677,196.4,196.36,25.82410403]
[1735163952748,9.94976677,196.39,196.36,25.82410403]
[1735163953317,9.94976677,196.4,196.36,25.82410403]
[1735163953535,0.12549,196.45,196.36,25.82410403]
[1735163953536,9.94976677,196.41,196.36,25.82410403]
[1735163954055,0.12549,196.45,196.36,25.82410403]
[1735163954056,9.94976677,196.42,196.36,25.82410403]
[1735163954258,20.0,196.43,196.36,25.82410403]
[1735163954466,9.94976677,196.42,196.36,25.82410403]
[1735163958338,9.94976677,196.4,196.36,25.82410403]
[1735163958540,9.94976677,196.39,196.31,9.94976677]
[1735163958858,9.94976677,196.39,196.32,29.94976677]
[1735163959053,9.94976677,196.4,196.32,29.94976677]
[1735163960234,9.94976677,196.4,196.33,9.94976677]
[1735163962260,9.94976677,196.4,196.32,9.94976677]
[1735163963699,9.94976677,196.4,196.3,1.6431]
[1735163964062,9.94976677,196.4,196.32,9.94976677]
[1735163965338,9.94976677,196.41,196.33,9.94976677]
[1735163965465,51.66834255,196.74,196.39,9.94976677]
[1735163965466,3.55119303,196.5,196.39,9.94976677]